bitfinex-derivatives/quotes_ETHF0:USTF0_20250708
["timestamp","ask_amount","ask_price","bid_price","bid_amount"]
[1752018312298,4.22278661,2618.0,2617.9,1.6568]
[1752018312500,4.22278661,2618.0,2617.9,0.6692]
[1752018313006,0.76381,2617.8,2617.7,1.6689]
[1752018313203,2.04792,2617.8,2617.7,1.6568]
[1752018313506,5.25572,2617.8,2617.7,1.6568]
[1752018313702,2.73962,2617.8,2617.7,1.6568]
[1752018314204,1.45551,2617.8,2617.7,2.42064]
[1752018314405,0.76381,2617.8,2617.7,2.42064]
[1752018315106,1.45551,2617.8,2617.7,2.42064]
[1752018315304,0.76381,2617.8,2617.7,2.42064]
[1752018315504,1.45551,2617.8,2617.7,2.42064]
[1752018315704,1.45551,2617.8,2617.7,1.6568]
[1752018316207,1.28411,2618.0,2617.8,0.7638]
[1752018316208,0.76381,2617.9,2617.8,0.7638]
[1752018316402,0.76381,2617.9,2617.8,1.433]
[1752018316599,0.76381,2617.9,2617.8,2.4206]
[1752018317001,3.8462,2618.1,2618.0,0.76376]
[1752018317207,6.09237198,2618.1,2618.0,1.6568]
[1752018317406,6.78407198,2618.1,2618.0,1.6568]
[1752018317806,6.78407198,2618.1,2618.0,2.42056]
[1752018318508,6.09237198,2618.1,2618.0,2.42056]
[1752018318804,1.48244198,2618.1,2618.0,2.42056]
[1752018319006,0.76369,2618.3,2618.2,0.7637]
[1752018319210,2.24687791,2618.3,2618.2,0.7637]
[1752018319407,2.24687791,2618.3,2618.2,1.4329]
[1752018319706,2.93857791,2618.3,2618.2,2.4205]
[1752018320309,2.93857791,2618.3,2618.2,1.4329]
[1752018320703,2.24685791,2618.3,2618.2,2.4205]
[1752018322010,2.89605791,2618.3,2618.2,1.6568]
[1752018322609,4.18016791,2618.3,2618.2,1.6568]
[1752018323002,4.18016791,2618.3,2618.2,0.6692]
[1752018323208,2.76729791,2618.3,2617.8,3.2078]
[1752018323407,1.28411,2617.9,2617.8,3.2078]
[1752018323608,1.28411,2617.9,2617.8,3.8624]
[1752018323810,2.04789,2617.9,2617.8,3.8624]
[1752018324008,2.04789,2617.9,2617.8,1.41841]
[1752018324712,0.76378,2617.9,2617.8,1.41841]
[1752018325415,0.76374,2618.1,2618.0,0.76374]
[1752018325805,2.89583823,2618.1,2618.0,0.76374]
[1752018326510,2.24663823,2618.1,2618.0,0.76374]
[1752018326706,2.89583823,2618.1,2618.0,0.76374]
[1752018326912,2.13209823,2618.1,2618.0,0.76374]
[1752018328515,1.48289823,2618.1,2618.0,2.37084]
[1752018329227,1.48289823,2618.1,2618.0,0.76374]
[1752018329426,1.48289823,2618.1,2618.0,2.37084]
[1752018330923,2.24662823,2618.1,2618.0,2.37084]
[1752018331124,2.24778398,2618.1,2618.0,2.37084]
[1752018331624,2.24778398,2618.1,2618.0,0.6546]
[1752018331625,2.89698398,2618.1,2618.0,0.6546]
[1752018331822,6.10478398,2618.1,2618.0,0.6546]
[1752018332022,6.10478398,2618.1,2618.0,1.41836]
[1752018333429,5.34105398,2618.1,2618.0,1.41836]
[1752018333822,5.34105398,2618.1,2618.0,2.37086]
[1752018335726,2.13325398,2618.1,2618.0,2.37086]
[1752018340029,1.48405398,2618.1,2618.0,2.37086]
[1752018340729,1.48405398,2618.1,2618.0,3.03116]
[1752018341229,1.48405398,2618.1,2618.0,4.31556]
[1752018341531,3.8451,2618.5,2618.4,0.76364]
[1752018341732,6.09300298,2618.5,2618.4,1.41824]
[1752018342027,1.48429298,2618.5,2618.4,2.37074]
[1752018343028,0.76358,2618.6,2618.5,0.76358]
[1752018343224,2.24731627,2618.6,2618.5,1.41818]
[1752018343426,2.24731627,2618.6,2618.5,2.37068]
[1752018343729,2.89651627,2618.6,2618.5,2.37068]
[1752018344128,2.13293627,2618.6,2618.5,2.37068]
[1752018344527,2.89651627,2618.6,2618.5,2.37068]
[1752018346030,2.89651627,2618.6,2618.5,1.6071]
[1752018346230,2.89651627,2618.6,2618.5,2.37071]
[1752018347330,0.6492,2618.6,2618.5,2.37071]
[1752018347930,2.27408181,2618.7,2618.6,0.76358]
[1752018348131,3.75552569,2618.7,2618.6,1.41818]
[1752018348426,1.70784569,2618.7,2618.6,2.37068]
[1752018348830,2.47139569,2618.7,2618.6,2.37068]
[1752018349030,3.12059569,2618.7,2618.6,2.37068]
[1752018350031,1.63915181,2618.7,2618.6,1.41818]
[1752018350432,1.63915181,2618.7,2618.6,0.6546]
[1752018350629,1.63915181,2618.7,2618.6,1.6071]
[1752018351127,1.63915181,2618.7,2618.5,0.76359]
[1752018351128,0.76361,2618.5,2618.4,2.38661]
[1752018351327,0.7636,2618.6,2618.5,0.7636]
[1752018351523,1.4257,2618.6,2618.5,2.3437]
[1752018351726,0.6621,2618.6,2618.5,2.3437]
[1752018353034,0.98997181,2618.7,2618.6,0.76358]
[1752018353333,0.22640181,2618.7,2618.6,2.33328]
[1752018353534,0.98995181,2618.7,2618.6,2.33328]
[1752018354434,0.22640181,2618.7,2618.6,2.33328]
[1752018354933,0.88850181,2618.7,2618.6,2.33328]
[1752018355230,0.98995181,2618.7,2618.6,2.33328]
[1752018356332,0.22640181,2618.7,2618.6,2.33328]
[1752018356634,0.88850181,2618.7,2618.6,2.33328]
[1752018357534,1.65205181,2618.7,2618.6,2.33328]
[1752018358135,2.93616181,2618.7,2618.6,1.39118]
[1752018358335,2.93616181,2618.7,2618.6,0.6276]
[1752018358730,2.93616181,2618.7,2618.6,1.39118]
[1752018359134,2.93616181,2618.7,2618.6,2.33328]
[1752018359737,2.93616181,2618.7,2618.6,0.6276]
[1752018360138,2.93616181,2618.7,2618.6,1.39118]
[1752018361039,2.93616181,2618.7,2618.6,0.6276]
[1752018361438,1.90902,2618.6,2618.2,3.2078]
[1752018361740,0.76367,2618.3,2618.2,3.8354]
[1752018361930,1.42577,2618.3,2618.2,3.8354]
[1752018362339,0.76367,2618.3,2618.2,3.8354]
[1752018362540,1.42577,2618.3,2618.2,0.6276]
[1752018363042,0.7637,2618.2,2618.1,0.7637]
[1752018363241,2.70991,2618.2,2618.1,0.6276]
[1752018363444,0.76373,2618.1,2618.0,0.76374]
[1752018363647,0.76376,2618.0,2617.9,3.2078]
[1752018363840,2.04787,2618.0,2617.9,3.8354]
[1752018364240,2.70997,2618.0,2617.9,3.8354]
[1752018364442,2.70997,2618.0,2617.8,1.6105]
[1752018364443,0.76381,2617.8,2617.6,9.4734581]
[1752018364641,2.04792,2617.8,2617.7,1.39144]
[1752018364843,2.71002,2617.8,2617.7,0.6276]
[1752018365043,2.04792,2617.8,2617.7,1.5697]
[1752018365244,2.71002,2617.8,2617.7,1.5697]
[1752018365743,2.71002,2617.8,2617.7,2.33354]
[1752018366046,2.71002,2617.8,2617.7,1.5697]
[1752018366447,2.71002,2617.8,2617.7,2.33354]
[1752018367253,2.71004,2617.8,2617.6,0.76387]
[1752018367448,2.71004,2617.8,2617.7,0.6276]
[1752018367748,2.71004,2617.8,2617.7,1.39144]
[1752018368148,2.04794,2617.8,2617.7,1.39144]
[1752018368847,2.71004,2617.8,2617.7,1.39144]
[1752018370851,2.04794,2617.8,2617.7,1.39144]
[1752018371251,2.71004,2617.8,2617.7,1.39144]
[1752018371954,0.76384,2617.7,2617.6,0.76387]
[1752018372348,1.42594,2617.7,2617.6,1.39147]
[1752018372548,0.76384,2617.7,2617.6,1.39147]
[1752018372749,1.42594,2617.7,2617.6,1.39147]
[1752018372949,0.76384,2617.7,2617.6,2.33357]
[1752018373352,1.42594,2617.7,2617.6,2.33357]
[1752018373751,0.76384,2617.7,2617.6,2.33357]
[1752018374053,1.42594,2617.7,2617.6,2.33357]
[1752018374846,0.6621,2617.7,2617.6,2.33357]
[1752018376458,1.42594,2617.7,2617.6,2.33357]
[1752018377260,0.6621,2617.7,2617.6,2.33357]
[1752018377461,1.45484,2617.8,2617.7,0.76384]
[1752018377658,1.45484,2617.8,2617.7,1.39144]
[1752018377852,2.11694,2617.8,2617.7,2.33354]
[1752018380962,2.11694,2617.8,2617.7,1.5697]
[1752018382164,2.11694,2617.8,2617.7,2.33354]
[1752018382865,2.11694,2617.8,2617.7,1.39144]
[1752018383763,2.11694,2617.8,2617.7,2.39004]
[1752018384263,2.11694,2617.8,2617.7,1.39144]
[1752018384563,2.11694,2617.8,2617.7,0.6276]
[1752018385159,2.11694,2617.8,2617.7,1.39144]
[1752018385359,2.11694,2617.8,2617.7,0.6276]
[1752018385963,0.76387,2617.6,2617.5,4.97027]
[1752018386164,1.28411,2617.7,2617.6,0.76387]
[1752018386364,1.92471,2617.7,2617.6,1.45287]
[1752018386664,1.92471,2617.7,2617.6,2.45147]
[1752018387463,2.68855,2617.7,2617.6,2.45147]
[1752018388366,1.92471,2617.7,2617.6,2.45147]
[1752018390568,2.68855,2617.7,2617.6,2.45147]
[1752018390861,2.68855,2617.7,2617.6,0.689]
[1752018391268,2.68855,2617.7,2617.6,1.45287]
[1752018391466,2.68855,2617.7,2617.2,4.2064]
[1752018391467,2.88471,2617.7,2617.2,4.2064]
[1752018391663,1.28411,2617.3,2617.2,4.97039]
[1752018391858,1.92471,2617.3,2617.2,5.65939]
[1752018392067,2.57901,2617.3,2617.2,5.65939]
[1752018392362,1.2949,2617.3,2617.2,5.65939]
[1752018392672,0.6406,2617.3,2617.2,5.65939]
[1752018392875,2.70233,2617.5,2617.4,0.76393]
[1752018393171,3.34293,2617.5,2617.4,1.45293]
[1752018393672,2.70233,2617.5,2617.4,1.45293]
[1752018393870,3.34293,2617.5,2617.4,1.45293]
[1752018394370,3.34293,2617.5,2617.4,2.45153]
[1752018395274,2.57901,2617.5,2617.4,2.45153]
[1752018401678,3.34291,2617.5,2617.4,0.689]
[1752018401877,0.76396,2617.3,2617.2,1.76257]
[1752018402078,0.6406,2617.3,2617.2,2.45157]
[1752018402278,2.04807,2617.3,2617.2,2.45157]
[1752018402576,2.04807,2617.3,2617.2,1.45297]
[1752018402782,0.764,2617.2,2617.1,0.76401]
[1752018402973,1.4011,2617.2,2617.1,1.45301]
[1752018403378,2.0417,2617.2,2617.1,1.45301]
[1752018403573,1.4011,2617.2,2617.1,1.45301]
[1752018403773,1.4011,2617.2,2617.1,0.689]
[1752018403979,2.0417,2617.2,2617.1,1.6876]
[1752018404383,2.0417,2617.2,2617.1,2.45162]
[1752018404584,1.4011,2617.2,2617.1,2.45162]
[1752018404882,1.341,2617.6,2617.1,1.6876]
[1752018405078,1.48539205,2617.5,2617.2,4.8514]
[1752018405283,0.6487,2617.6,2617.4,1.45292]
[1752018405284,1.4126,2617.6,2617.4,1.45292]
[1752018406181,0.6406,2617.5,2617.4,1.45292]
[1752018406382,0.6406,2617.5,2617.4,2.45152]
[1752018406783,0.7639,2617.5,2617.4,2.45152]
[1752018406978,1.4045,2617.5,2617.4,1.45292]
[1752018407786,0.6406,2617.5,2617.4,1.45292]
[1752018408684,1.4045,2617.5,2617.4,1.45292]
[1752018408886,1.4045,2617.5,2617.4,2.45152]
[1752018409082,2.88983771,2617.5,2617.4,2.45152]
[1752018409584,2.12593771,2617.5,2617.4,2.45152]
[1752018409784,2.12593771,2617.5,2617.4,1.45292]
[1752018411986,2.12593771,2617.5,2617.4,2.45152]
[1752018412185,2.12593771,2617.5,2617.4,1.45292]
[1752018412787,2.12593771,2617.5,2617.4,2.39792]
[1752018414688,2.12593771,2617.5,2617.4,1.45292]
[1752018415789,2.12593771,2617.5,2617.4,2.39792]
[1752018415987,2.12593771,2617.5,2617.4,1.45292]
[1752018416188,4.17394771,2617.5,2617.4,1.45292]
[1752018416587,4.17394771,2617.5,2617.4,1.45023]
[1752018416788,4.17394771,2617.5,2617.4,0.76393]
[1752018417089,4.17394771,2617.5,2617.4,1.45023]
[1752018417386,3.41004771,2617.5,2617.4,1.45023]
[1752018418790,2.12593771,2617.5,2617.4,2.39523]
[1752018422691,1.48533771,2617.5,2617.4,2.39523]
[1752018423290,0.6487,2617.6,2617.5,0.7639]
[1752018423490,2.81735738,2617.6,2617.5,1.4502]
[1752018423790,2.81735738,2617.6,2617.5,2.3952]
[1752018424688,0.7639,2617.5,2617.4,0.76391]
[1752018424896,2.04801,2617.5,2617.4,1.45021]
[1752018425087,1.28411,2617.5,2617.4,1.45021]
[1752018425887,1.96591,2617.5,2617.4,1.45021]
[1752018426382,1.28411,2617.5,2617.4,1.45021]
[1752018426585,2.72981,2617.5,2617.4,1.45021]
[1752018427091,2.72981,2617.5,2617.4,0.6863]
[1752018427293,0.76394,2617.4,2617.0,32.1943081]
[1752018427493,0.6898,2617.3,2617.2,0.76397]
[1752018427693,0.6898,2617.3,2617.2,1.45027]
[1752018427895,1.3716,2617.3,2617.2,1.45027]
[1752018428192,2.65571,2617.3,2617.2,1.45027]
[1752018428793,3.41967,2617.3,2617.2,1.45027]
[1752018428993,1.90998,2617.2,2616.7,10.25934323]
[1752018429195,2.04822,2616.8,2616.7,4.5597081]
[1752018429395,2.04822,2616.8,2616.7,5.2460081]
[1752018429595,2.04822,2616.8,2616.7,4.5597081]
[1752018430091,0.76413,2616.7,2616.6,5.5047081]
[1752018430295,0.76413,2616.7,2616.6,1.6313]
[1752018431593,0.76413,2616.7,2616.6,2.39546]
[1752018432091,0.76413,2616.7,2616.6,1.6313]
[1752018432596,1.44593,2616.7,2616.6,0.6863]
[1752018432797,0.76413,2616.7,2616.6,0.6863]
[1752018433097,1.44593,2616.7,2616.6,0.6863]
[1752018433297,1.44593,2616.7,2616.5,0.76418]
[1752018433298,0.6818,2616.7,2616.4,4.91701]
[1752018433497,0.76419,2616.5,2616.4,4.1528]
[1752018433698,0.76419,2616.5,2616.4,4.8391]
[1752018433899,0.6497,2616.5,2616.4,5.60332]
[1752018434101,0.6497,2616.5,2616.4,4.65832]
[1752018434497,1.41389,2616.5,2616.4,4.65832]
[1752018434700,0.6497,2616.5,2616.4,4.65832]
[1752018435094,1.41389,2616.5,2616.4,4.65832]
[1752018435299,0.6497,2616.5,2616.4,4.65832]
[1752018436295,1.3315,2616.5,2616.4,4.65832]
[1752018436501,0.6497,2616.5,2616.4,4.65832]
[1752018436800,1.3315,2616.5,2616.4,5.60332]
[1752018437000,2.09569,2616.5,2616.4,4.65832]
[1752018437302,2.09569,2616.5,2616.4,5.60332]
[1752018438000,2.09569,2616.5,2616.4,2.39552]
[1752018438201,2.09569,2616.5,2616.4,0.6863]
[1752018438403,2.09569,2616.5,2616.4,1.45052]
[1752018438902,2.09569,2616.5,2616.4,2.39552]
[1752018439698,1.3315,2616.5,2616.4,2.39552]
[1752018441805,2.09569,2616.5,2616.4,0.6863]
[1752018442603,2.09569,2616.5,2616.4,1.45052]
[1752018443004,2.09569,2616.5,2616.4,0.6863]
[1752018446209,1.91056,2616.4,2616.0,3.2078]
[1752018446409,5.13471,2616.1,2615.7,1.0074]
[1752018446607,2.04853,2615.8,2615.6,3.8769]
[1752018446804,2.69133,2615.8,2615.7,0.6855]
[1752018447509,0.76449,2615.5,2615.4,1.6765]
[1752018447707,2.0486,2615.5,2615.4,0.6855]
[1752018447908,0.76454,2615.3,2615.2,4.5597081]
[1752018448107,2.04865,2615.3,2615.2,0.6855]
[1752018448307,1.92691,2615.3,2615.0,0.76462]
[1752018448608,2.69145,2615.3,2615.2,0.6855]
[1752018448798,0.76448,2615.6,2615.2,1.6929]
[1752018449001,2.04859,2615.6,2615.4,0.7645]
[1752018449204,0.6428,2615.5,2615.4,1.6929]
[1752018449507,2.04859,2615.6,2615.4,2.45741]
[1752018449809,0.6428,2615.5,2615.4,2.45741]
[1752018450311,5.25632,2615.8,2615.5,0.76446]
[1752018450503,5.89912,2615.8,2615.7,0.6855]
[1752018450905,5.25632,2615.8,2615.7,0.6855]
[1752018451410,5.89912,2615.8,2615.7,0.6855]
[1752018455610,6.10761,2615.8,2615.3,1.6765]
[1752018455806,0.76454,2615.3,2615.2,0.76456]
[1752018456008,0.76454,2615.3,2615.2,0.6855]
[1752018456009,1.40734,2615.3,2615.2,0.6855]
[1752018456208,2.03364,2615.3,2615.2,0.6855]
[1752018460016,2.03364,2615.3,2615.2,1.45007]
[1752018460316,2.03364,2615.3,2615.2,0.6855]
[1752018460518,2.67495,2615.3,2615.2,2.45747]
[1752018461619,2.67495,2615.3,2615.2,1.6929]
[1752018462521,2.67495,2615.3,2615.2,2.3248]
[1752018463022,1.91041,2615.3,2615.2,3.08937]
[1752018463315,3.2078,2615.5,2615.2,3.08937]
[1752018463316,5.2564,2615.5,2615.4,0.76451]
[1752018463522,1.28411,2615.7,2615.4,1.6929]
[1752018463721,2.04856,2615.7,2615.5,1.77187]
[1752018464022,2.04856,2615.7,2615.6,1.6929]
[1752018464317,2.69136,2615.7,2615.6,1.6929]
[1752018464624,2.69136,2615.7,2615.6,2.45736]
[1752018464920,2.69136,2615.7,2615.6,0.6855]
[1752018465323,2.69136,2615.7,2615.6,1.6929]
[1752018466424,2.69136,2615.7,2615.6,2.45736]
[1752018466824,2.69136,2615.7,2615.6,1.44996]
[1752018468226,2.69136,2615.7,2615.6,2.45736]
[1752018471529,2.69136,2615.7,2615.6,1.44996]
[1752018474329,1.94371,2615.7,2615.3,2.3086]
[1752018474529,1.42437,2615.6,2615.5,0.76446]
[1752018474733,1.42437,2615.6,2615.5,1.41226]
[1752018475035,2.08397,2615.6,2615.5,1.41226]
[1752018475726,3.36808,2615.6,2615.5,1.41226]
[1752018476331,3.36808,2615.6,2615.5,2.41546]
[1752018477332,4.86198739,2615.6,2615.5,2.41546]
[1752018478131,3.36808,2615.6,2615.5,2.41546]
[1752018478331,4.86195894,2615.6,2615.5,2.41546]
[1752018479733,4.09748894,2615.6,2615.5,2.41546]
[1752018480231,1.28411,2615.8,2615.7,0.76443]
[1752018480527,1.49363642,2615.8,2615.7,1.651]
[1752018480725,1.49363642,2615.8,2615.7,2.41543]
[1752018481132,1.49363642,2615.8,2615.7,3.69903]
[1752018482734,1.40907,2616.3,2616.1,0.7643]
[1752018482934,1.49329963,2616.2,2616.1,0.7643]
[1752018483336,1.49329963,2616.2,2616.1,1.4121]
[1752018483537,1.49329963,2616.2,2616.1,2.4153]
[1752018488643,2.15289963,2616.2,2616.1,2.4153]
[1752018489647,1.49329963,2616.2,2616.1,2.4153]
[1752018489847,2.15289963,2616.2,2616.1,2.4153]
[1752018491344,0.6596,2616.2,2616.1,2.4153]
[1752018493339,0.76436,2616.0,2615.8,1.0032]
[1752018493543,4.63176,2616.0,2615.9,0.6478]
[1752018494349,4.63176,2616.0,2615.9,1.41217]
[1752018494544,0.6596,2616.0,2615.9,0.6478]
[1752018494745,1.94371,2616.0,2615.9,1.651]
[1752018494946,3.2078,2616.3,2615.9,1.651]
[1752018494947,3.2078,2616.3,2616.1,0.76431]
[1752018495146,3.97206,2616.3,2616.2,0.6478]
[1752018495349,5.46143791,2616.3,2616.2,0.6478]
[1752018495649,6.12103791,2616.3,2616.2,0.6478]
[1752018496351,2.91323791,2616.3,2616.2,0.6478]
[1752018497450,2.91323791,2616.3,2616.2,1.41208]
[1752018497647,2.91323791,2616.3,2616.2,2.41528]
[1752018498148,0.6596,2616.3,2616.2,2.41528]
[1752018504051,1.42385,2616.3,2616.2,1.651]
[1752018504252,1.42385,2616.3,2616.2,0.6478]
[1752018504649,0.6596,2616.3,2616.2,0.6331]
[1752018504848,0.76431,2616.2,2616.0,1.77012]
[1752018505048,2.04842,2616.2,2616.0,1.77012]
[1752018505351,2.70272,2616.2,2616.1,0.6331]
[1752018505652,2.70272,2616.2,2616.0,0.76432]
[1752018505851,0.76431,2616.1,2615.9,0.76435]
[1752018506053,1.28411,2616.0,2615.9,0.76435]
[1752018506356,2.70275,2616.0,2615.9,2.40325]
[1752018507254,1.93841,2616.0,2615.9,2.40325]
[1752018507454,2.70275,2616.0,2615.9,0.6331]
[1752018509351,0.6543,2616.0,2615.9,2.40327]
[1752018509854,0.6293,2616.1,2616.0,0.76434]
[1752018510050,1.2836,2616.1,2616.0,1.39744]
[1752018510256,0.6293,2616.1,2616.0,2.40324]
[1752018510749,1.2836,2616.1,2616.0,2.40324]
[1752018510955,0.6293,2616.1,2616.0,2.40324]
[1752018511351,1.2836,2616.1,2616.0,2.40324]
[1752018511752,2.04791,2616.1,2616.0,2.40324]
[1752018512359,1.2836,2616.1,2616.0,2.40324]
[1752018513058,2.04791,2616.1,2616.0,2.40324]
[1752018513660,1.2836,2616.1,2616.0,2.40324]
[1752018515364,2.04791,2616.1,2616.0,2.40324]
[1752018515556,2.04791,2616.1,2616.0,1.39744]
[1752018515758,0.76434,2616.0,2615.9,0.76435]
[1752018515953,2.70275,2616.0,2615.9,1.39745]
[1752018516463,2.04845,2616.0,2615.9,1.39745]
[1752018516661,1.28411,2616.0,2615.9,1.39745]
[1752018516862,1.93841,2616.0,2615.9,1.39745]
[1752018517161,1.28411,2616.0,2615.9,1.39745]
[1752018517354,1.93841,2616.0,2615.9,1.39745]
[1752018519555,4.19535537,2616.0,2615.9,0.6331]
[1752018519759,0.76438,2615.9,2615.7,4.97801]
[1752018519959,2.70279,2615.9,2615.8,1.3975]
[1752018520160,4.19561404,2615.9,2615.8,0.6331]
[1752018520463,3.54131404,2615.9,2615.8,1.3975]
[1752018520659,3.54131404,2615.9,2615.8,2.4033]
[1752018520858,4.19561404,2615.9,2615.8,2.4033]
[1752018521560,3.54131404,2615.9,2615.8,2.4033]
[1752018521761,4.19561404,2615.9,2615.8,2.4033]
[1752018521958,1.49282404,2615.9,2615.8,2.4033]
[1752018522165,0.6293,2616.1,2616.0,0.76434]
[1752018522359,2.12175366,2616.1,2616.0,1.39744]
[1752018522665,2.12175366,2616.1,2616.0,2.40324]
[1752018522962,2.88606366,2616.1,2616.0,2.40324]
[1752018523164,3.54036366,2616.1,2616.0,2.40324]
[1752018523463,1.2836,2616.1,2616.0,2.40324]
[1752018523662,2.7760417,2616.1,2616.0,2.40324]
[1752018524163,2.77607881,2616.1,2616.0,2.40324]
[1752018524964,2.04791,2616.1,2616.0,2.40324]
[1752018525163,2.04791,2616.1,2616.0,1.39744]
[1752018526364,1.2836,2616.1,2616.0,1.39744]
[1752018529169,1.2836,2616.1,2616.0,2.40324]
[1752018535072,2.77579181,2616.1,2616.0,2.40324]
[1752018536372,1.2836,2616.1,2616.0,2.40324]
[1752018536773,2.77579219,2616.1,2616.0,2.40324]
[1752018540879,1.2836,2616.1,2616.0,2.40324]
[1752018541878,2.77590179,2616.1,2616.0,2.40324]
[1752018543180,1.2836,2616.1,2616.0,2.40324]
[1752018543479,2.77591106,2616.1,2616.0,2.40324]
[1752018546082,2.77578207,2616.1,2616.0,2.40324]
[1752018547483,1.2836,2616.1,2616.0,2.40324]
[1752018549084,2.77580007,2616.1,2616.0,2.40324]
[1752018549384,2.77580007,2616.1,2616.0,1.39744]
[1752018554296,2.77580007,2616.1,2616.0,2.33634]
[1752018561103,6.64149779,2616.7,2616.1,1.91073]
[1752018561303,0.6349,2616.6,2616.5,0.76419]
[1752018561604,0.6349,2616.6,2616.5,1.70309]
[1752018561901,1.2957,2616.6,2616.5,2.33039]
[1752018562295,1.2957,2616.6,2616.5,2.63681565]
[1752018562500,0.6608,2616.6,2616.5,2.63681565]
[1752018562802,0.6608,2616.6,2616.5,4.61371565]
[1752018564902,3.8351,2617.0,2616.9,0.76408]
[1752018565097,4.4959,2617.0,2616.9,0.76408]
[1752018565303,5.25995,2617.0,2616.8,0.76409]
[1752018565904,4.4959,2617.0,2616.8,0.76409]
[1752018566704,4.4959,2617.0,2616.9,0.6273]
[1752018567006,4.4959,2617.0,2616.9,2.35838]
[1752018567607,0.6273,2617.0,2616.9,2.35838]
[1752018567911,3.2078,2617.4,2617.3,0.76396]
[1752018568211,3.8646,2617.4,2617.3,1.39126]
[1752018568408,4.5254,2617.4,2617.3,1.39126]
[1752018568608,3.8646,2617.4,2617.3,1.39126]
[1752018569409,4.5254,2617.4,2617.3,1.39126]
[1752018570212,4.5254,2617.4,2617.3,0.6273]
[1752018570213,5.28933,2617.4,2617.3,0.6273]
[1752018570414,2.08153,2617.4,2617.3,0.6273]
[1752018571209,3.36564,2617.4,2617.3,0.6273]
[1752018573406,3.36564,2617.4,2617.2,0.76397]
[1752018573810,3.36564,2617.4,2617.3,0.6273]
[1752018574515,2.08153,2617.4,2617.3,0.6273]
[1752018575917,1.3176,2617.4,2616.9,0.967]
[1752018576119,2.04812,2617.2,2617.0,0.76404]
[1752018576317,0.6608,2617.1,2617.0,1.39134]
[1752018576822,0.76414,2616.7,2616.6,0.76416]
[1752018577114,0.76414,2616.7,2616.6,0.6273]
[1752018577115,2.04825,2616.7,2616.6,0.6273]
[1752018577321,0.76416,2616.6,2616.5,1.73117]
[1752018577514,1.39336,2616.6,2616.5,2.35847]
[1752018577816,0.6292,2616.6,2616.5,2.35847]
[1752018579518,0.76411,2616.8,2616.6,0.76415]
[1752018580318,1.42491,2616.8,2616.7,0.6273]
[1752018580617,0.76411,2616.8,2616.7,0.6273]
[1752018580920,1.42491,2616.8,2616.7,0.6273]
[1752018581620,0.76413,2616.7,2616.6,0.967]
[1752018581820,3.42924,2616.7,2616.4,3.97202]
[1752018582014,1.42737,2616.6,2616.4,5.56632]
[1752018582213,0.6608,2616.5,2616.4,5.56632]
[1752018582416,1.42737,2616.6,2616.4,5.56632]
[1752018582720,0.76419,2616.5,2616.4,3.8351]
[1752018582918,2.7091,2616.5,2616.4,3.2078]
[1752018583118,0.76428,2616.2,2616.1,0.7643]
[1752018583324,1.42508,2616.2,2616.1,0.6273]
[1752018583524,0.6608,2616.2,2616.1,0.6273]
[1752018583825,0.6593,2616.2,2616.1,1.39161]
[1752018584026,1.3201,2616.2,2616.1,2.35861]
[1752018584327,0.6593,2616.2,2616.1,2.35861]
[1752018584827,1.3201,2616.2,2616.1,2.35861]
[1752018586025,0.76431,2616.1,2616.0,3.2078]
[1752018586232,0.76431,2616.1,2616.0,3.8351]
[1752018586431,1.42359,2616.2,2616.0,4.59944]
[1752018586931,0.6608,2616.1,2616.0,4.59944]
[1752018591732,0.6608,2616.1,2616.0,5.56644]
[1752018597136,0.6608,2616.1,2615.0,4.5597081]
[1752018597137,1.91095,2615.9,2615.0,4.5597081]
[1752018597338,4.49191,2615.3,2615.1,0.9726]
[1752018597542,3.2078,2615.6,2615.2,1.92581]
[1752018598035,0.7645,2615.5,2615.3,0.9726]
[1752018598234,1.21371,2615.4,2615.3,0.9726]
[1752018598434,1.86221,2615.4,2615.3,0.9726]
[1752018598634,1.86221,2615.4,2615.2,0.6417]
[1752018598635,0.76454,2615.3,2615.2,0.6417]
[1752018598835,3.97234,2615.3,2615.2,0.6417]
[1752018599838,3.657,2615.3,2615.2,0.6417]
[1752018600337,3.657,2615.3,2615.2,1.40627]
[1752018600735,3.657,2615.3,2615.2,0.6417]
[1752018600934,4.42154,2615.3,2615.2,0.6417]
[1752018604642,4.42154,2615.3,2615.2,1.6143]
[1752018605644,4.42154,2615.3,2615.2,0.6417]
[1752018608944,0.76457,2615.2,2615.0,0.76461]
[1752018609145,1.21377,2615.2,2615.1,0.6417]
[1752018609347,2.04871,2615.1,2615.0,1.73721]
[1752018609542,1.28411,2615.1,2615.0,2.37891]
[1752018610039,2.49791,2615.1,2615.0,2.37891]
[1752018610235,2.49791,2615.1,2615.0,1.6143]
[1752018610444,0.76463,2615.0,2614.9,0.76464]
[1752018610642,0.76463,2615.0,2614.8,1.6076]
[1752018610643,0.76466,2614.9,2614.8,1.6076]
[1752018610837,3.13137,2614.9,2614.8,1.6143]
[1752018611035,2.68217,2614.9,2614.8,1.6143]
[1752018611242,3.13137,2614.9,2614.8,1.6143]
[1752018611941,2.36671,2614.9,2614.8,2.37899]
[1752018612140,3.97235,2615.3,2615.1,0.76459]
[1752018612346,5.05495,2615.3,2615.2,0.6417]
[1752018612546,5.05495,2615.3,2615.2,1.6143]
[1752018613246,3.657,2615.3,2615.2,2.37887]
[1752018613546,3.2078,2615.3,2615.2,2.37887]
[1752018615549,5.25645,2615.3,2615.2,0.6417]
[1752018615853,5.70566,2615.3,2615.2,1.6143]
[1752018617352,5.70566,2615.3,2615.2,0.6417]
[1752018619458,5.70566,2615.3,2615.2,2.37887]